bitfinex-derivatives/quotes_BTCF0:USTF0_20241010
["timestamp","ask_amount","ask_price","bid_price","bid_amount"]
[1728534200715,0.23388657,60880.0,60879.0,0.61486536]
[1728534202205,0.23388657,60880.0,60879.0,0.6148654]
[1728534202612,0.23388657,60880.0,60879.0,0.61494118]
[1728534203305,0.23388657,60880.0,60879.0,0.72944681]
[1728534203614,0.23388657,60880.0,60879.0,0.84443655]
[1728534204610,0.23388657,60880.0,60879.0,0.72944681]
[1728534205001,0.23388657,60880.0,60879.0,0.30182398]
[1728534205204,0.23388657,60880.0,60879.0,0.70374556]
[1728534205412,0.23388657,60880.0,60879.0,0.72944654]
[1728534205611,0.23388657,60880.0,60879.0,0.36864654]
[1728534205913,0.23388657,60880.0,60879.0,0.32752496]
[1728534206113,0.23388657,60880.0,60879.0,0.48365441]
[1728534206319,0.23388657,60880.0,60879.0,0.72944654]
[1728534208413,0.23388657,60880.0,60879.0,0.36864654]
[1728534209527,0.23388657,60880.0,60879.0,0.72944654]
[1728534209715,0.23388657,60880.0,60879.0,0.66262398]
[1728534209918,0.23388657,60880.0,60879.0,0.72944653]
[1728534210717,0.23388657,60880.0,60879.0,0.34328053]
[1728534210921,0.23388657,60880.0,60879.0,0.30215896]
[1728534211122,0.23388657,60880.0,60879.0,0.41727294]
[1728534211324,0.23388657,60880.0,60879.0,0.30243233]
[1728534211516,0.23388657,60880.0,60879.0,0.41737774]
[1728534212022,0.23388657,60880.0,60879.0,0.30243233]
[1728534212222,0.23388657,60880.0,60879.0,0.18731835]
[1728534212426,0.23388657,60880.0,60879.0,0.417333]
[1728534213120,0.23388657,60880.0,60879.0,0.18731835]
[1728534214027,0.11388657,60880.0,60879.0,0.18731835]
[1728534214224,0.11388657,60880.0,60879.0,0.29521953]
[1728534214726,0.11388657,60880.0,60879.0,0.33634264]
[1728534214921,0.11388657,60880.0,60879.0,0.29521953]
[1728534215523,0.11142136,60880.0,60879.0,0.29521953]
[1728534217630,0.11142136,60880.0,60879.0,0.26951735]
[1728534217929,0.11142136,60880.0,60879.0,0.29521853]
[1728534219624,0.11142136,60880.0,60879.0,0.21268604]
[1728534219823,0.11142136,60880.0,60879.0,0.3161237]
[1728534220719,0.11142136,60880.0,60879.0,0.29556275]
[1728534220923,0.11142136,60880.0,60879.0,0.3161237]
[1728534222033,0.11142136,60880.0,60879.0,0.6769237]
[1728534224136,0.11142136,60880.0,60879.0,0.63066157]
[1728534224336,0.11142136,60880.0,60879.0,0.65122252]
[1728534224531,0.11142136,60880.0,60879.0,0.67693902]
[1728534227842,0.11142136,60880.0,60879.0,0.65123778]
[1728534228235,0.11142136,60880.0,60879.0,0.77107445]
[1728534228434,0.11142136,60880.0,60879.0,0.41027445]
[1728534228635,0.11142136,60880.0,60879.0,0.77107445]
[1728534229446,0.11142136,60880.0,60879.0,0.41027445]
[1728534229637,0.11142136,60880.0,60879.0,0.77107445]
[1728534230238,0.11142136,60880.0,60879.0,0.41027445]
[1728534230443,0.11142136,60880.0,60879.0,0.77107445]
[1728534231444,0.11142136,60880.0,60879.0,0.74537333]
[1728534231634,0.11142136,60880.0,60879.0,0.77107543]
[1728534232045,0.11142136,60880.0,60879.0,0.41027543]
[1728534232549,0.11142136,60880.0,60879.0,0.32807643]
[1728534235040,0.11142136,60880.0,60879.0,0.30237433]
[1728534235237,0.11142136,60880.0,60879.0,0.32807625]
[1728534238749,0.11142136,60880.0,60879.0,0.30237433]
[1728534238953,0.11142136,60880.0,60879.0,0.32807625]
[1728534239148,0.11142136,60880.0,60879.0,0.3283364]
[1728534242354,0.11142136,60880.0,60879.0,0.35403832]
[1728534242857,0.11142136,60880.0,60879.0,0.56781722]
[1728534243444,0.11142136,60880.0,60879.0,0.5421153]
[1728534244454,0.11142136,60880.0,60879.0,0.4105354]
[1728534244652,0.11142136,60880.0,60879.0,0.5421153]
[1728534244856,0.11142136,60880.0,60879.0,0.51641338]
[1728534245149,0.11142136,60880.0,60879.0,0.54211461]
[1728534245455,0.11142136,60880.0,60879.0,0.56781572]
[1728534246556,0.23142136,60880.0,60879.0,0.56781572]
[1728534247056,0.19441177,60880.0,60879.0,0.60893749]
[1728534247957,0.19441177,60880.0,60879.0,0.56781572]
[1728534248361,0.19441177,60880.0,60879.0,0.56781559]
[1728534249245,0.19441177,60880.0,60879.0,0.43623569]
[1728534249757,0.19441177,60880.0,60879.0,0.56781559]
[1728534250660,0.19441177,60880.0,60879.0,0.81759594]
[1728534250857,0.19441177,60880.0,60879.0,0.81728633]
[1728534251257,0.0044,60892.0,60880.0,0.082198]
[1728534251467,0.0038,60897.0,60896.0,0.082176]
[1728534251652,0.08217,60901.0,60896.0,0.082176]
[1728534251653,0.08217,60901.0,60896.0,1.01691275]
[1728534251955,0.03032803,60907.0,60897.0,0.27653695]
[1728534251956,0.12,60899.0,60897.0,0.27653695]
[1728534252159,0.12,60899.0,60898.0,0.23876389]
[1728534252348,0.202172,60899.0,60898.0,0.23876389]
[1728534252550,0.202172,60899.0,60898.0,0.21307052]
[1728534252964,0.202172,60899.0,60898.0,0.2541801]
[1728534253360,0.208172,60899.0,60898.0,0.2551801]
[1728534254264,0.208172,60899.0,60898.0,0.6159801]
[1728534254467,0.215172,60899.0,60898.0,0.6169801]
[1728534254667,0.215172,60899.0,60898.0,0.55017718]
[1728534255160,0.215172,60899.0,60898.0,0.61698023]
[1728534255360,0.215172,60899.0,60898.0,0.64267371]
[1728534255560,0.215172,60899.0,60898.0,0.69915423]
[1728534256155,0.215172,60899.0,60898.0,0.59726083]
[1728534256361,0.133,60899.0,60898.0,0.59726083]
[1728534257265,0.215172,60899.0,60898.0,0.6955557]
[1728534257465,0.215172,60899.0,60898.0,0.62875265]
[1728534258369,0.215172,60899.0,60898.0,0.53045778]
[1728534258370,0.24411086,60899.0,60898.0,0.53045778]
[1728534259469,0.24411086,60899.0,60898.0,0.444974]
[1728534262858,0.24411086,60899.0,60898.0,0.51177788]
[1728534264763,0.24411086,60899.0,60898.0,0.15097788]
[1728534264966,0.24411086,60899.0,60898.0,0.51177788]
[1728534265369,0.24411086,60899.0,60898.0,0.4706678]
[1728534265561,0.24411086,60899.0,60898.0,0.51177788]
[1728534265763,0.24411086,60899.0,60898.0,0.444974]
[1728534266373,0.24411086,60899.0,60898.0,0.5301254]
[1728534267866,0.24411086,60899.0,60898.0,0.1693254]
[1728534268174,0.12411086,60899.0,60898.0,0.62842027]
[1728534268473,0.24411086,60899.0,60898.0,0.62842027]
[1728534271089,0.24411086,60899.0,60898.0,0.54326887]
[1728534271293,0.04193886,60899.0,60898.0,0.65017534]
[1728534273098,0.04193886,60899.0,60898.0,0.74847021]
[1728534273690,0.04193886,60899.0,60898.0,0.65017534]
[1728534274391,0.04193886,60899.0,60898.0,0.444974]
[1728534274592,0.04193886,60899.0,60898.0,0.51177546]
[1728534277898,0.04193886,60899.0,60898.0,0.444974]
[1728534278099,0.04193886,60899.0,60898.0,0.47066709]
[1728534278299,0.04193886,60899.0,60898.0,0.444974]
[1728534278503,0.04193886,60899.0,60898.0,0.51177614]
[1728534279203,0.04193886,60899.0,60898.0,0.56092174]
[1728534280206,0.04193886,60899.0,60898.0,0.51177614]
[1728534280505,0.04193886,60899.0,60898.0,0.56103119]
[1728534281305,0.04193886,60899.0,60898.0,0.57730361]
[1728534281603,0.04193886,60899.0,60898.0,0.8174385]
[1728534281802,0.04193886,60899.0,60898.0,0.75063636]
[1728534282006,0.04193886,60899.0,60898.0,0.81743868]
[1728534282299,0.03593886,60899.0,60898.0,0.81543868]
[1728534282504,0.04193886,60899.0,60898.0,0.81743868]
[1728534283002,0.03893886,60899.0,60898.0,0.93643868]
[1728534283310,0.03593886,60899.0,60898.0,0.81543868]
[1728534285402,0.03593886,60899.0,60898.0,0.62807243]
[1728534285601,0.03593886,60899.0,60898.0,0.81517693]
[1728534288410,0.03593886,60899.0,60898.0,0.45437693]
[1728534288606,0.03593886,60899.0,60898.0,0.81517693]
[1728534288907,0.03593886,60899.0,60898.0,0.93517693]
[1728534289506,0.03593886,60899.0,60898.0,0.62977632]
[1728534292304,0.03593886,60899.0,60898.0,0.65546682]
[1728534294707,0.12,60903.0,60898.0,0.57329282]
[1728534294906,0.12,60903.0,60902.0,0.442968]
[1728534295215,0.12,60903.0,60902.0,0.46866046]
[1728534295415,0.14914233,60903.0,60902.0,0.46866046]
[1728534295710,0.14914233,60903.0,60902.0,0.53545963]
[1728534296015,0.24030933,60903.0,60902.0,0.53545963]
[1728534296205,0.24730933,60903.0,60902.0,0.53645963]
[1728534296818,0.24730933,60903.0,60902.0,0.46966046]
[1728534297220,0.12730933,60903.0,60902.0,0.46966046]
[1728534297617,0.11830933,60903.0,60902.0,0.53645963]
[1728534297809,0.12430933,60903.0,60902.0,0.53745963]
[1728534299011,0.12430933,60903.0,60902.0,0.51176764]
[1728534299321,0.12430933,60903.0,60902.0,0.53745947]
[1728534300620,0.04214233,60903.0,60902.0,0.53745947]
[1728534300816,0.04214233,60903.0,60902.0,0.84261335]
[1728534301618,0.00246349,60911.0,60910.0,0.082158]
[1728534301817,0.00246349,60911.0,60910.0,0.45600684]
[1728534302015,0.00246349,60911.0,60910.0,0.71437654]
[1728534302318,0.00246349,60911.0,60910.0,0.48169548]
[1728534302521,0.00246349,60911.0,60910.0,0.45600302]
[1728534302824,0.00246349,60911.0,60910.0,0.57450429]
[1728534302825,0.00746349,60911.0,60910.0,0.57450429]
[1728534303126,0.00746349,60911.0,60910.0,0.70597105]
[1728534303332,0.00746349,60911.0,60910.0,0.57450429]
[1728534303621,0.1503,60918.0,60917.0,0.082148]
[1728534303622,0.082147,60918.0,60917.0,0.082148]
[1728534303822,0.082147,60918.0,60917.0,0.2874846]
[1728534303823,0.10571356,60918.0,60917.0,0.2874846]
[1728534304616,0.02356656,60918.0,60917.0,0.2874846]
[1728534304830,0.3608,60919.0,60917.0,0.2053366]
[1728534305015,0.3608,60919.0,60918.0,0.1674836]
[1728534305322,0.3608,60919.0,60918.0,0.26591247]
[1728534305715,0.3608,60919.0,60918.0,0.1674836]
[1728534306221,0.3608,60919.0,60918.0,0.26685338]
[1728534306523,0.082136,60927.0,60918.0,0.61588237]
[1728534306823,0.12,60925.0,60923.0,0.45916033]
[1728534307019,0.202137,60925.0,60924.0,0.0853366]
[1728534307415,0.082137,60925.0,60924.0,0.0853366]
[1728534307611,0.082137,60925.0,60924.0,0.2053366]
[1728534307815,0.082137,60925.0,60924.0,0.30369693]
[1728534308023,0.082137,60925.0,60924.0,0.2053366]
[1728534308726,0.082137,60925.0,60924.0,0.0853366]
[1728534309115,0.082137,60925.0,60924.0,0.18360753]
[1728534309315,0.082137,60925.0,60924.0,0.0853366]
[1728534311930,0.22527992,60927.0,60923.0,0.30326832]
[1728534311931,0.082139,60924.0,60923.0,0.30326832]
[1728534312132,0.202139,60924.0,60923.0,0.30326832]
[1728534313327,0.202139,60924.0,60923.0,0.31126832]
[1728534314031,0.202139,60924.0,60923.0,0.31626832]
[1728534314223,0.202139,60924.0,60923.0,0.013]
[1728534316731,0.082139,60924.0,60923.0,0.013]
[1728534316932,0.202139,60924.0,60923.0,0.013]
[1728534317129,0.082139,60924.0,60923.0,0.013]
[1728534317923,0.082139,60924.0,60923.0,0.09514]
[1728534320040,0.082139,60924.0,60923.0,0.24374791]
[1728534320225,0.082139,60924.0,60923.0,0.3284959]
[1728534320639,0.082139,60924.0,60923.0,0.28740213]
[1728534321227,0.082139,60924.0,60923.0,0.2055716]
[1728534321428,0.082139,60924.0,60923.0,0.1234316]
[1728534321628,0.082139,60924.0,60923.0,0.20527288]
[1728534321929,0.082139,60924.0,60923.0,0.013]
[1728534322129,0.082139,60924.0,60923.0,0.17958683]
[1728534323636,0.082139,60924.0,60923.0,0.09774555]
[1728534328241,0.082139,60924.0,60923.0,0.19601648]
[1728534329136,0.082139,60924.0,60923.0,0.09774555]
[1728534331344,0.082139,60924.0,60923.0,0.19901131]
[1728534333847,0.202139,60924.0,60923.0,0.19901131]
[1728534334053,0.26934452,60924.0,60923.0,0.013]
[1728534336844,0.26934452,60924.0,60923.0,0.21514]
[1728534336845,0.14934452,60924.0,60923.0,0.21514]
[1728534337049,0.14934452,60924.0,60923.0,0.28191737]
[1728534337258,0.14934452,60924.0,60923.0,0.16191737]
[1728534338542,0.26934452,60924.0,60923.0,0.16191737]
[1728534339140,0.202139,60924.0,60923.0,0.16191737]
[1728534340144,0.082139,60924.0,60923.0,0.28191737]
[1728534341050,0.14939895,60924.0,60923.0,0.16191737]
[1728534342141,0.082139,60924.0,60923.0,0.34838144]
[1728534342353,0.082139,60924.0,60923.0,0.33297124]
[1728534342547,0.082139,60924.0,60923.0,0.34838136]
[1728534345751,0.082139,60924.0,60923.0,0.59757832]
[1728534345948,0.082139,60924.0,60923.0,0.46611157]
[1728534348954,0.02314392,60927.0,60926.0,0.082136]
[1728534348955,0.10527892,60927.0,60926.0,0.082136]
[1728534349157,0.10527892,60927.0,60923.0,0.133]
[1728534349158,0.14937501,60927.0,60923.0,0.133]
[1728534349454,0.13088099,60930.0,60924.0,0.082139]
[1728534349455,0.082137,60925.0,60924.0,0.082139]
[1728534349655,0.14937701,60925.0,60924.0,0.082139]
[1728534350944,0.14937701,60925.0,60924.0,0.11182249]
[1728534352355,0.14937701,60925.0,60924.0,0.11782249]
[1728534355855,0.14937701,60925.0,60924.0,0.18459954]
[1728534356057,0.14937701,60925.0,60924.0,0.10246054]
[1728534356255,0.14937701,60925.0,60924.0,0.03568349]
[1728534356854,0.14937701,60925.0,60924.0,0.11782249]
[1728534357156,0.082137,60925.0,60924.0,0.49019559]
[1728534357553,0.082137,60925.0,60924.0,0.464512]
[1728534357759,0.082137,60925.0,60924.0,0.44910201]
[1728534358059,0.082137,60925.0,60924.0,0.46451185]
[1728534359358,0.082137,60925.0,60924.0,0.59597861]
[1728534360658,0.082137,60925.0,60924.0,0.59593579]
[1728534360853,0.38471439,60931.0,60924.0,0.56702083]
[1728534361053,0.082136,60927.0,60926.0,0.082136]
[1728534361357,0.082136,60927.0,60926.0,0.50271735]
[1728534361749,0.082136,60927.0,60926.0,0.8152635]
[1728534361949,0.082136,60927.0,60926.0,0.74849007]
[1728534362150,0.082136,60927.0,60926.0,0.81526358]
[1728534362354,0.082136,60927.0,60926.0,0.81926358]
[1728534363755,0.082136,60927.0,60926.0,0.82126358]
[1728534364160,0.14902279,60927.0,60926.0,0.448936]
[1728534364348,0.14902279,60927.0,60926.0,0.51570946]
[1728534364552,0.14902279,60927.0,60926.0,0.58248292]
[1728534364850,0.14902279,60927.0,60926.0,0.5824829]
[1728534366163,0.14902279,60927.0,60926.0,0.60816499]
[1728534366762,0.14902279,60927.0,60926.0,0.54139155]
[1728534368256,0.14902279,60927.0,60926.0,0.54139224]
[1728534368853,0.1489596,60927.0,60926.0,0.54139224]
[1728534370160,0.1489596,60927.0,60926.0,0.47461878]
[1728534370951,0.1489596,60927.0,60926.0,0.51570916]
[1728534371148,0.082136,60927.0,60926.0,0.63605224]
[1728534372262,0.082136,60927.0,60926.0,0.66173494]
[1728534373362,0.082136,60927.0,60926.0,0.63605224]
[1728534373765,0.082136,60927.0,60926.0,0.55392242]
[1728534376163,0.082136,60927.0,60926.0,0.19312242]
[1728534379159,0.06672405,60927.0,60922.0,0.124541]
[1728534379470,0.08214,60923.0,60922.0,0.113041]
[1728534379761,0.14886405,60923.0,60922.0,0.13872461]
[1728534379971,0.14886405,60923.0,60922.0,0.113041]
[1728534380364,0.14886405,60923.0,60922.0,0.14272461]
[1728534380567,0.14886405,60923.0,60922.0,0.16840822]
[1728534381256,0.14886405,60923.0,60922.0,0.19409183]
[1728534381457,0.14886405,60923.0,60922.0,0.19609183]
[1728534382060,0.14886405,60923.0,60922.0,0.20009183]
[1728534382263,0.14886405,60923.0,60922.0,0.20409183]
[1728534383370,0.148832,60923.0,60922.0,0.17840822]
[1728534385167,0.17234911,60923.0,60922.0,0.17840822]
[1728534386373,0.10565711,60923.0,60922.0,0.50984537]
[1728534386863,0.02351711,60923.0,60922.0,0.62984537]
[1728534387058,0.0307,60936.0,60922.0,0.56824962]
[1728534387257,0.082129,60932.0,60930.0,0.08213]
[1728534387469,0.082129,60932.0,60931.0,0.33310335]
[1728534387770,0.082129,60932.0,60931.0,0.41523235]
[1728534389267,0.084129,60932.0,60931.0,0.41523235]
[1728534389665,0.084129,60932.0,60931.0,0.38955114]
[1728534389858,0.084129,60932.0,60931.0,0.41523211]
[1728534390467,0.084129,60932.0,60931.0,0.33310311]
[1728534390863,0.084129,60932.0,60931.0,0.30742214]
[1728534391172,0.084129,60932.0,60931.0,0.33310311]
[1728534392870,0.084129,60932.0,60931.0,0.33247013]
[1728534393971,0.002,60932.0,60931.0,0.41459913]
[1728534394175,0.082125,60934.0,60932.0,0.082127]
[1728534394474,0.082125,60934.0,60933.0,0.47169649]
[1728534395373,0.084125,60934.0,60933.0,0.44601552]
[1728534396781,0.084125,60934.0,60933.0,0.08521552]
[1728534397082,0.082125,60934.0,60933.0,0.44601552]
[1728534397679,0.082125,60934.0,60933.0,0.44580066]
[1728534398473,0.202125,60934.0,60933.0,0.44580066]
[1728534399115,0.202125,60934.0,60933.0,0.52782392]
[1728534401210,0.3471156,60934.0,60933.0,0.3608]
[1728534402602,0.2271172,60934.0,60933.0,0.3608]
[1728534402793,0.3471172,60934.0,60933.0,0.442927]
[1728534405081,0.2692185,60934.0,60933.0,0.50969271]
[1728534406592,0.2692185,60934.0,60933.0,0.42756571]
[1728534406793,0.2692185,60934.0,60933.0,0.3608]
[1728534407296,0.26918364,60934.0,60933.0,0.3608]
[1728534409198,0.082125,60934.0,60933.0,0.48671815]
[1728534409396,0.202125,60934.0,60933.0,0.48671815]
[1728534409906,0.202125,60934.0,60933.0,0.38823871]
[1728534411000,0.202125,60934.0,60933.0,0.4866576]
[1728534411196,0.202125,60934.0,60933.0,0.38823871]
[1728534411710,0.202125,60934.0,60933.0,0.38869936]
[1728534411898,0.202125,60934.0,60933.0,0.49051746]
[1728534412797,0.082125,60934.0,60933.0,0.49051746]
[1728534412987,0.202125,60934.0,60933.0,0.49051746]
[1728534414000,0.202125,60934.0,60933.0,0.18723869]
[1728534416202,0.202125,60934.0,60933.0,0.08542059]
[1728534417194,0.202125,60934.0,60933.0,0.18734804]
[1728534419098,0.082125,60934.0,60933.0,0.18734804]
[1728534419296,0.202125,60934.0,60933.0,0.18734804]
[1728534424316,0.202125,60934.0,60932.0,0.442928]
[1728534424317,0.34625123,60934.0,60932.0,0.442928]
[1728534424523,0.23230074,60933.0,60932.0,0.442928]
[1728534424817,0.23230074,60933.0,60932.0,0.50969395]
[1728534425402,0.23230074,60933.0,60932.0,0.14889395]
[1728534425608,0.37954186,60933.0,60932.0,0.50969395]
[1728534426409,0.37954186,60933.0,60932.0,0.14889395]
[1728534426608,0.37954186,60933.0,60932.0,0.50969395]
[1728534427715,0.23230074,60933.0,60932.0,0.442928]
[1728534428014,0.23230074,60933.0,60932.0,0.17457269]
[1728534428211,0.23230074,60933.0,60932.0,0.53537269]
[1728534429206,0.23231952,60933.0,60932.0,0.53537269]
[1728534430416,0.23231952,60933.0,60932.0,0.50969361]
[1728534431116,0.23231952,60933.0,60932.0,0.442928]
[1728534431311,0.202125,60934.0,60932.0,0.81565634]
[1728534431526,0.202125,60934.0,60933.0,0.30256259]
[1728534431818,0.202125,60934.0,60933.0,0.18755096]
[1728534433612,0.202125,60934.0,60933.0,0.21323003]
[1728534434415,0.202125,60934.0,60933.0,0.18755096]
[1728534437325,0.082125,60934.0,60933.0,0.26967796]
[1728534438724,0.082125,60934.0,60933.0,0.26956625]
[1728534439425,0.082125,60934.0,60932.0,0.47581163]
[1728534439622,0.082125,60934.0,60932.0,0.55793963]
[1728534439623,0.2757265,60933.0,60932.0,0.55793963]
[1728534439823,0.2757265,60933.0,60932.0,0.62470513]
[1728534440022,0.14428128,60933.0,60932.0,0.62470513]
[1728534440218,0.14428128,60933.0,60932.0,0.26390513]
[1728534440418,0.14428128,60933.0,60932.0,0.62470513]
[1728534441133,0.22640828,60933.0,60932.0,0.55793963]
[1728534441429,0.22640828,60933.0,60932.0,0.62470513]
[1728534441819,0.35785779,60933.0,60932.0,0.62470513]
[1728534442022,0.35785779,60933.0,60932.0,0.58361867]
[1728534442926,0.35785779,60933.0,60932.0,0.22281867]
[1728534443224,0.35785779,60933.0,60932.0,0.26390584]
[1728534443433,0.35785779,60933.0,60932.0,0.14889421]
[1728534443636,0.22640828,60933.0,60932.0,0.14889421]
[1728534444128,0.21357736,60933.0,60932.0,0.082128]
[1728534444440,0.35785864,60933.0,60932.0,0.082128]
[1728534444730,0.22640828,60933.0,60932.0,0.082128]
[1728534446423,0.22640828,60933.0,60932.0,0.38556769]
[1728534446424,0.082127,60933.0,60932.0,0.38556769]
[1728534446725,0.02339876,60936.0,60932.0,0.42242702]
[1728534447029,0.02339876,60936.0,60931.0,0.3934]
[1728534447030,0.12,60936.0,60933.0,0.27058625]
[1728534447236,0.12,60936.0,60934.0,0.18846125]
[1728534447419,0.202123,60936.0,60935.0,0.18846125]
[1728534448628,0.202123,60936.0,60935.0,0.21414073]
[1728534449724,0.202123,60936.0,60935.0,0.21514073]
[1728534449923,0.202123,60936.0,60935.0,0.18946125]
[1728534450131,0.202123,60936.0,60935.0,0.21514073]
[1728534451437,0.202123,60936.0,60935.0,0.18946125]
[1728534451736,0.202123,60936.0,60935.0,0.21514073]
[1728534454431,0.202123,60936.0,60935.0,0.02667948]
[1728534454645,0.202123,60936.0,60935.0,0.001]
[1728534454833,0.202123,60936.0,60935.0,0.02667948]
[1728534455146,0.58037357,60936.0,60935.0,0.02667948]
[1728534455631,0.46037357,60936.0,60935.0,0.02667948]
[1728534455831,0.58037357,60936.0,60935.0,0.001]
[1728534456638,0.58037357,60936.0,60935.0,0.02667948]
[1728534458231,0.43256998,60936.0,60935.0,0.001]
[1728534458539,0.43256998,60936.0,60935.0,0.02667948]
[1728534458735,0.43256998,60936.0,60935.0,0.001]
[1728534459546,0.23044698,60936.0,60935.0,0.083124]
[1728534460626,0.23044698,60936.0,60935.0,0.10880343]
[1728534461147,0.14297635,60936.0,60935.0,0.29556646]
[1728534461334,0.10599994,60936.0,60935.0,0.29556646]
[1728534461533,0.02241388,60941.0,60940.0,0.082117]
[1728534461839,0.082112,60944.0,60940.0,0.29651969]
[1728534462136,0.082112,60944.0,60941.0,0.18872326]
[1728534462335,0.082112,60944.0,60942.0,0.18872326]
[1728534462638,0.082112,60944.0,60940.0,0.083117]
[1728534462639,0.12,60943.0,60940.0,0.083117]
[1728534462843,0.12,60943.0,60941.0,0.18862334]
[1728534463034,0.12,60943.0,60942.0,0.18862334]
[1728534463841,0.082112,60944.0,60942.0,0.18862334]
[1728534464040,0.10462052,60944.0,60943.0,0.0860523]
[1728534464341,0.22462052,60944.0,60943.0,0.0860523]
[1728534465234,0.22462052,60944.0,60943.0,0.18448577]
[1728534465642,0.22462052,60944.0,60943.0,0.18548577]
[1728534466640,0.22462052,60944.0,60943.0,0.18648577]
[1728534469539,0.22462052,60944.0,60938.0,0.31673714]
[1728534469540,0.30645241,60944.0,60938.0,0.31673714]
[1728534469843,0.28411155,60941.0,60938.0,0.31673714]
[1728534470146,0.16394389,60940.0,60938.0,0.39885614]
[1728534470336,0.16394389,60939.0,60938.0,0.082119]
[1728534470537,0.16394389,60939.0,60938.0,0.14887775]
[1728534470538,0.16393914,60939.0,60938.0,0.14887775]
[1728534470743,0.16393914,60939.0,60938.0,0.14987775]
[1728534471239,0.293563,60939.0,60938.0,0.14887775]
[1728534471547,0.35538956,60939.0,60938.0,0.14887775]
[1728534471840,0.35538956,60939.0,60938.0,0.14987775]
[1728534472737,0.35638956,60939.0,60938.0,0.14887775]
[1728534473733,0.34311456,60939.0,60938.0,0.14887775]
[1728534473944,0.37443053,60939.0,60938.0,0.14887775]
[1728534474241,0.22675654,60939.0,60938.0,0.14887775]
[1728534474842,0.37443053,60939.0,60938.0,0.17455418]
[1728534475044,0.37443053,60939.0,60938.0,0.30027747]
[1728534475245,0.22675654,60939.0,60938.0,0.32595377]
[1728534475450,0.37443053,60939.0,60938.0,0.32595377]
[1728534475638,0.22675654,60939.0,60938.0,0.20595377]
[1728534476037,0.14106278,60939.0,60938.0,0.20595377]
[1728534476442,0.1410911,60939.0,60938.0,0.20595377]
[1728534476638,0.001,60939.0,60938.0,0.26714932]
[1728534477048,0.001,60939.0,60938.0,0.29877523]
[1728534477348,0.001,60939.0,60938.0,0.20039085]
[1728534478641,0.001,60939.0,60938.0,0.29878004]
[1728534479238,0.001,60939.0,60938.0,0.20039085]
[1728534479745,0.001,60939.0,60938.0,0.29878294]
[1728534479949,0.001,60939.0,60938.0,0.20039085]
[1728534483147,0.001,60939.0,60938.0,0.22606826]
[1728534485154,0.001,60939.0,60938.0,0.22621417]
[1728534485741,0.001,60939.0,60938.0,0.20053676]
[1728534486943,0.001,60939.0,60938.0,0.26729737]
[1728534488243,0.001,60939.0,60938.0,0.20053676]
[1728534490939,0.001,60939.0,60938.0,0.29908465]
[1728534491753,0.001,60939.0,60938.0,0.113519]
[1728534492047,0.22710303,60939.0,60938.0,0.113519]
[1728534494456,0.14128123,60939.0,60938.0,0.113519]
[1728534494853,0.14128123,60939.0,60938.0,0.18027949]
[1728534495744,0.14128123,60939.0,60938.0,0.18027943]
[1728534496245,0.14128123,60939.0,60938.0,0.20595652]
[1728534499057,0.14128123,60939.0,60938.0,0.113519]
[1728534499355,0.1043065,60939.0,60938.0,0.20595581]
[1728534499553,0.06491355,60939.0,60938.0,0.14844056]
[1728534499755,0.15390852,60944.0,60941.0,0.082115]
[1728534499950,0.50330852,60944.0,60942.0,0.19232388]
[1728534500254,0.50330852,60944.0,60943.0,0.19232388]
[1728534500841,0.50430852,60944.0,60943.0,0.19232388]
[1728534501046,0.02350852,60944.0,60943.0,0.39443688]
[1728534501255,0.02350852,60944.0,60943.0,0.51070013]
[1728534501549,0.02350852,60944.0,60943.0,0.42138732]
[1728534503258,0.02250852,60944.0,60943.0,0.53829677]
[1728534503455,0.12,60945.0,60944.0,0.082112]
[1728534503658,0.12,60945.0,60944.0,0.30011078]
[1728534504257,0.12,60945.0,60944.0,0.29933138]
[1728534504954,0.12,60945.0,60944.0,0.30133138]
[1728534506159,0.02203117,60945.0,60944.0,0.21921938]
[1728534506455,0.0114,60947.0,60946.0,0.082109]
[1728534506657,0.00246174,60949.0,60947.0,0.082108]
[1728534506863,0.00246174,60949.0,60948.0,0.08738496]
[1728534509864,0.0252499,60949.0,60948.0,0.08738496]
[1728534510062,0.00246174,60949.0,60948.0,0.08738496]
[1728534510765,0.00246174,60949.0,60948.0,0.08838496]
[1728534511177,0.12246174,60949.0,60948.0,0.08838496]
[1728534512259,0.14503713,60949.0,60948.0,0.08838496]
[1728534513262,0.14503713,60949.0,60948.0,0.08738496]
[1728534513569,0.14503713,60949.0,60948.0,0.08938496]
[1728534514063,0.14503713,60949.0,60948.0,0.17142596]
[1728534514662,0.28404096,60949.0,60948.0,0.084106]
[1728534515060,0.16404096,60949.0,60948.0,0.204106]
[1728534515558,0.16404096,60949.0,60948.0,0.084106]
[1728534515766,0.29546126,60949.0,60948.0,0.084106]
[1728534519669,0.37756626,60949.0,60948.0,0.003]
[1728534519966,0.24614596,60949.0,60948.0,0.004]
[1728534520360,0.33119493,60949.0,60948.0,0.004]
[1728534520966,0.24614596,60949.0,60948.0,0.004]
[1728534521771,0.10714213,60949.0,60948.0,0.004]
[1728534524262,0.10714213,60949.0,60948.0,0.08598354]
[1728534525475,0.10714213,60949.0,60948.0,0.17334103]
[1728534527066,0.10714213,60949.0,60948.0,0.08598354]
[1728534527364,0.10714213,60949.0,60948.0,0.17340378]
[1728534528272,0.10714213,60949.0,60948.0,0.08598354]
[1728534528461,0.10714213,60949.0,60948.0,0.17345209]
[1728534529473,0.10714213,60949.0,60948.0,0.09146855]
[1728534529869,0.33125039,60949.0,60947.0,0.082107]
[1728534530064,0.34410826,60948.0,60947.0,0.082107]
[1728534530869,0.33217704,60948.0,60947.0,0.082107]
[1728534531076,0.33217704,60948.0,60947.0,0.085107]
[1728534531077,0.49075865,60948.0,60947.0,0.085107]
[1728534531277,0.34292247,60948.0,60947.0,0.085107]
[1728534532373,0.34292247,60948.0,60947.0,0.086107]
[1728534532576,0.34292247,60948.0,60947.0,0.083107]
[1728534532871,0.34292247,60948.0,60947.0,0.087107]
[1728534533391,0.34292247,60948.0,60947.0,0.088107]
[1728534536476,0.34248933,60948.0,60947.0,0.088107]
[1728534536778,0.12,60948.0,60947.0,0.27445319]
[1728534542371,0.12,60948.0,60947.0,0.27445287]
[1728534543075,0.12,60948.0,60947.0,0.17600594]
[1728534543285,0.02503713,60949.0,60948.0,0.082106]
[1728534543490,0.02503713,60949.0,60948.0,0.34141227]
[1728534543491,0.00246174,60949.0,60948.0,0.34141227]
[1728534543688,0.00246174,60949.0,60948.0,0.37351227]
[1728534544878,0.14099725,60949.0,60948.0,0.1819563]
[1728534546087,0.14099725,60949.0,60948.0,0.1849563]
[1728534546389,0.10402976,60949.0,60948.0,0.1849563]
[1728534547190,0.07399918,60949.0,60948.0,0.1849563]